Cogmind - Beta 11 X8 @@@ ROGUE MODE // 2022.01.06 @ 11:17:25 // Halloween2019/Abominations Player: Minty Result: Core destroyed Performance ------------- Evolutions (3) 1500 Regions Visited (4) 800 Robots Destroyed (41) 205 Value Destroyed (2024) 2024 Prototype IDs (4) 80 Alien Tech Used (0) 0 Bonus (8) 8 TOTAL SCORE: 4617 Bonus ------- High Alert Combat Kills 8 Cogmind --------- Core Integrity 0/700 Matter 101/300 Energy 150/150 System Corruption 7% Temperature Critical (1259) Movement Treading (240) Ox1 Location -7/Factory Parts ------- > --- POWER (1) -------- Micro Nuclear Core > --- PROPULSION (2) --- Light Treads Light Treads > --- UTILITY (4) ------ Small Storage Unit > --- WEAPON (6) ------- Small Laser Electrolaser Improved Assault Rifle Enhanced Autogun > --- INVENTORY (8) ---- Aerolev Unit Autogun Peak State ------------ > --- POWER ------------ Micro Nuclear Core > --- PROPULSION ------- Light Treads Light Treads > --- UTILITY ---------- Heat Sink Structural Scanner Light Armor Plating Improved Medium Armor Plating > --- WEAPON ----------- Improved EM Shotgun Small Laser Electrolaser Improved Assault Rifle Enhanced Autogun Mini Grenade Launcher > --- INVENTORY -------- Aerolev Unit Small Storage Unit Autogun [Rating: 29] Favorites ----------- Power Light Ion Engine Engine Light Ion Engine Power Core Micro Nuclear Core Propulsion Light Treads Treads Light Treads Leg Aluminum Leg Hover Unit Aerolev Unit Utility Heat Sink Device Heat Sink Storage Small Storage Unit Hackware System Shield Protection Light Armor Plating Weapon Small Laser Energy Gun Small Laser Energy Cannon Light EM Pulse Cannon Ballistic Gun Improved Assault Rifle Launcher Mini Grenade Launcher Build | -11 -10 -9 -8 -7 ------- Run | Scr Mat Mat Mat Fac Slots Evolved 6 | . . 2 2 2 Power . | . . . . . Propulsion . | . . . . . Utility 2 | . . 1 . 1 Weapon 4 | . . 1 2 1 Parts Attached 45 | . 12 18 6 9 Power 4 | . 2 . 1 1 Engine 3 | . 2 . 1 . Core 1 | . . . . 1 Reactor . | . . . . . Propulsion 9 | . 2 7 . . Treads 5 | . 2 3 . . Leg 3 | . . 3 . . Wheel . | . . . . . Hover 1 | . . 1 . . Flight . | . . . . . Utility 9 | . 3 2 . 4 Device 3 | . 2 1 . . Storage 1 | . . . . 1 Processor . | . . . . . Hackware 1 | . . . . 1 Protection 4 | . 1 1 . 2 Artifact . | . . . . . Weapon 23 | . 5 9 5 4 Energy Gun 15 | . 2 6 3 4 Energy Cannon 1 | . . 1 . . Ballistic Gun 3 | . . 2 1 . Ballistic Cannon . | . . . . . Launcher 4 | . 3 . 1 . Special Weapon . | . . . . . Impact Weapon . | . . . . . Slashing Weapon . | . . . . . Piercing Weapon . | . . . . . Special Melee Weapon . | . . . . . Unidentified Prototypes 4 | . . 3 1 . Corrupted Parts 1 | . . . 1 . System Corruption 2 | . . . 2 . Parts Lost 25 | . 6 10 . 9 Power 3 | . 1 1 . 1 Propulsion 5 | . 1 4 . . Utility 6 | . 1 1 . 4 Weapon 11 | . 3 4 . 4 Highest Loss Streak 5 | . 4 5 . 4 Average Slot Usage (%) 87 | . 87 79 98 95 Engine 7 | . 13 6 7 3 Treads 12 | . . 16 18 15 Leg 7 | . 26 1 . . Device 17 | . 5 28 18 12 Storage 2 | . 8 . . . Protection 6 | . 4 2 9 13 Energy Gun 18 | . 17 15 20 23 Ballistic Gun 9 | . 2 7 18 15 Launcher 3 | . 7 . 5 5 Naked Turns . | . . . . . Heaviest Build 34 | 13 16 14 21 34 Greatest Support 40 | 20 40 40 40 40 Greatest Overweight (x) 1 | . . 1 . 1 Average Overweight (x) . | . . . . . Largest Inventory Capacity 8 | . 8 5 5 8 Average Capacity 5 | . 6 5 5 5 Most Carried 8 | . 8 5 5 4 Average Carried 3 | . 6 2 4 3 Final Capacity 8 | 8 5 5 5 8 Final Carried 6 | 6 3 5 5 2 Class Distribution -------------------- 43% | Mutant 21% | Scavenger-Executioner 8% | Scavenger-Tank 8% | Tank 6% | Skirmisher 4% | Scavenger-Skirmisher 3% | Executioner Dominant Class ---------------- Mutant | -10/Materials Mutant | -9/Materials Scavenger-Tank | -8/Materials Scavenger-Executioner | -7/Factory Resources | -11 -10 -9 -8 -7 ----------- Run | Scr Mat Mat Mat Fac Matter Collected 1103 | 200 296 327 117 163 Remotely . | . . . . . Salvage Created 1390 | . 558 419 257 156 Parts 91 | . 30 42 6 13 Haulers Intercepted . | . . . . . Recyclers Shooed 2 | . 2 . . . Parts Field Recycled . | . . . . . Retrieved Matter . | . . . . . Parts Self-Destructed . | . . . . . Prevented . | . . . . . Kills | -11 -10 -9 -8 -7 ------- Run | Scr Mat Mat Mat Fac Combat Hostiles Destroyed 32 | . 16 8 4 4 Guns 20 | . 7 6 4 3 Cannons 1 | . . 1 . . AOE 11 | . 9 1 . 1 Classes Destroyed 8 | . 5 2 1 . Worker 2 | . 2 . . . Operator 1 | . . . 1 . Watcher 3 | . 2 1 . . Swarmer 2 | . 2 . . . Grunt 13 | . 10 2 1 . Sentry 2 | . . 2 . . Abomination 15 | . 4 4 3 4 Anomaly 3 | . . 2 . 1 Best Kill Streak 7 | . 7 4 2 3 Combat Bots Only 5 | . 5 3 2 3 Max Kills in Single Turn 2 | . 2 1 1 1 Gunslinging . | . . . . . Exploded 1 | . 1 1 . 1 Melee . | . . . . . Uniques/NPCs Destroyed . | . . . . . Combat | -11 -10 -9 -8 -7 -------- Run | Scr Mat Mat Mat Fac Damage Taken 5165 | . 869 1081 33 3182 Core 1232 | . 181 260 . 791 Absorbed by Shields . | . . . . . Core Remaining (%) 65 | 100 27 35 100 . Volleys Fired 173 | . 59 76 11 27 Largest 6 | . 2 3 5 6 Hottest 241 | . 80 161 171 241 Shots Fired 374 | . 102 134 36 102 Gun 340 | . 77 132 36 95 Cannon 2 | . . 2 . . Launcher 32 | . 25 . . 7 Special . | . . . . . Kinetic 104 | . 6 28 22 48 Thermal 217 | . 71 99 13 34 Explosive 32 | . 25 . . 7 Electromagnetic 21 | . . 7 1 13 Robot Hit Streak 10 | . 10 7 9 9 Robot Miss Streak 16 | . 4 16 6 6 Penetration Max . | . . . . . Secondary Targets 1 | . . . . 1 Max Gunslinging Chain 1 | . . . . 1 Shots Hit Robots 211 | . 62 67 24 58 Core Hits 100 | . 39 24 12 25 Critical Kills . | . . . . . Critical Parts Destroyed 1 | . . . . 1 Critical Strikes 5 | . . 3 1 1 Burn 4 | . . 3 1 . Destroy 1 | . . . . 1 Melee Attacks . | . . . . . Impact . | . . . . . Slashing . | . . . . . Piercing . | . . . . . Sneak Attacks . | . . . . . Combat Hostiles . | . . . . . Follow-up Attacks . | . . . . . Damage Inflicted 4046 | . 1400 1147 389 1110 Guns 2735 | . 550 975 389 821 Cannons 29 | . . 29 . . Explosions 1280 | . 848 143 . 289 Melee . | . . . . . Ramming 2 | . 2 . . . Kinetic 808 | . 30 79 210 489 Thermal 1959 | . 520 959 164 316 Explosive 1181 | . 848 76 . 257 Electromagnetic 96 | . . 33 15 48 Impact . | . . . . . Slashing . | . . . . . Piercing . | . . . . . Highest Corruption 10 | . . 10 4 7 Average Corruption 4 | . . 5 2 2 Corruption Purged . | . . . . . Effects 19 | . . 12 1 6 Message Errors 5 | . . 1 . 4 Matter Fused 3 | . . 2 1 . Heat Flow Errors 4 | . . 3 . 1 Energy Discharges 1 | . . 1 . . Data Loss (minor) 2 | . . 2 . . Misfires 1 | . . 1 . . Weapon Failures 3 | . . 2 . 1 Overload Shots . | . . . . . Overflow Damage 5 | . 5 . . . Projectiles . | . . . . . Explosions 5 | . 5 . . . Melee . | . . . . . Knockbacks . | . . . . . Impact . | . . . . . Kinetic . | . . . . . Secondary . | . . . . . Self-Inflicted Damage 197 | . 197 . . . Shots 7 | . 7 . . . Rammed . | . . . . . Targets Rammed 2 | . 2 . . . Kicked 2 | . 2 . . . Crushed . | . . . . . Highest Temperature 1543 | . 324 189 86 1543 Average Temperature 232 | . 73 41 34 564 Received Heat Transfer 904 | . 252 157 18 477 Effects 36 | . . . . 36 Shutdowns 8 | . . . . 8 Energy Bleed 2 | . . . . 2 Interference 3 | . . . . 3 Matter Decay 4 | . . . . 4 Short Circuit 5 | . . . . 5 Damage (minor) 1 | . . . . 1 Damage (major) 8 | . . . . 8 Damage (core) 5 | . . . . 5 Siege Activations . | . . . . . Robots Corrupted . | . . . . . Combat Hostiles . | . . . . . Parts Fried . | . . . . . Impact Corruptions . | . . . . . Robots Melted . | . . . . . Combat Hostiles . | . . . . . Parts Melted 2 | . 2 . . . Heat Transferred 2187 | . 771 959 243 214 Parts Sabotaged . | . . . . . Parts Stolen . | . . . . . Parts Stripped . | . . . . . Power Chain Reactions 2 | . . 1 . 1 Missiles Intercepted . | . . . . . Alert | -11 -10 -9 -8 -7 ------- Run | Scr Mat Mat Mat Fac Peak Influence 410 | . 410 186 26 302 Initial 84 | . . 84 1 11 Average 123 | . 201 81 7 152 Maximum Alert Level 2 | . 2 . . 1 Low Security (%) 71 | . 41 100 100 47 Level 1 25 | . 49 . . 52 Level 2 2 | . 8 . . . Level 3 . | . . . . . Level 4 . | . . . . . Level 5 . | . . . . . High Security . | . . . . . Max Security . | . . . . . Squads Dispatched 43 | . 5 9 7 22 Investigation 7 | . 3 1 1 2 Extermination . | . . . . . Reinforcement 16 | . 2 4 6 4 Assault 8 | . . 4 . 4 Garrison 12 | . . . . 12 Intercept . | . . . . . Construction Impeded . | . . . . . Haulers Reinforced 1 | . . . . 1 Active Scanning Responses . | . . . . . Cargo Convoy Interrupts . | . . . . . Stealth | -11 -10 -9 -8 -7 --------- Run | Scr Mat Mat Mat Fac Distress Signals 23 | . 2 7 7 7 Communications Jammed . | . . . . . Distress Signals . | . . . . . Times Spotted 67 | . 24 19 5 19 Peak Tracking Total 13 | . 3 3 2 13 Tactical Retreats 3 | . . 1 . 2 Traps | -11 -10 -9 -8 -7 ------- Run | Scr Mat Mat Mat Fac Traps Triggered 4 | . 1 1 . 2 Indirectly . | . . . . . Trap Hack Attempts . | . . . . . Triggered . | . . . . . Disarmed . | . . . . . Reprogrammed . | . . . . . Reused . | . . . . . Traps Extracted . | . . . . . Installed . | . . . . . Triggered . | . . . . . Machines | -11 -10 -9 -8 -7 ---------- Run | Scr Mat Mat Mat Fac Machines Disabled 24 | . 5 1 . 18 Max in Single Turn 17 | . 2 1 . 17 Garrison Access 1 | . . . . 1 Machines Sabotaged 1 | . 1 . . . Garrisons Compromised . | . . . . . Overloaded Fab Kills . | . . . . . Hacking | -11 -10 -9 -8 -7 --------- Run | Scr Mat Mat Mat Fac Machines Accessed 4 | . 3 1 . . Terminals 4 | . 3 1 . . Fabricators . | . . . . . Repair Stations . | . . . . . Recycling Units . | . . . . . Scanalyzers . | . . . . . Garrison Access . | . . . . . Total Hacks 12 | . 8 4 . . Successful 6 | . 4 2 . . Failed 6 | . 4 2 . . Catastrophic 3 | . 3 . . . Database Lockouts . | . . . . . Manual 12 | . 8 4 . . Terminals 12 | . 8 4 . . Fabricators . | . . . . . Repair Stations . | . . . . . Recycling Units . | . . . . . Scanalyzers . | . . . . . Garrison Access . | . . . . . Terminal Hacks . | . . . . . Fabricator Hacks . | . . . . . Repair Station Hacks . | . . . . . Recycling Unit Hacks . | . . . . . Scanalyzer . | . . . . . Garrison Access Hacks . | . . . . . Unauthorized Hacks 6 | . 4 2 . . Terminals 6 | . 4 2 . . Botnet 4 | . 3 1 . . Sabotage 2 | . 1 1 . . Fabricators . | . . . . . Repair Stations . | . . . . . Recycling Units . | . . . . . Scanalyzers . | . . . . . Garrison Access . | . . . . . Data Cores Recovered . | . . . . . Used . | . . . . . Hacking Detections 3 | . 2 1 . . Full Trace Events 2 | . 2 . . . Feedback Events . | . . . . . Feedback Blocked . | . . . . . Robot Schematics Acquired . | . . . . . Robots Built . | . . . . . Authchips . | . . . . . Time . | . . . . . Total Robot Build Rating . | . . . . . Part Schematics Acquired . | . . . . . Parts Built . | . . . . . Authchips . | . . . . . Time . | . . . . . Total Part Build Rating . | . . . . . Parts Repaired . | . . . . . Time . | . . . . . Parts Recycled . | . . . . . Recycled Matter . | . . . . . Retrieved Matter . | . . . . . Retrieved Components . | . . . . . Parts Scanalyzed . | . . . . . Part Schematics Acquired . | . . . . . Parts Damaged . | . . . . . Bothacking | -11 -10 -9 -8 -7 ------------ Run | Scr Mat Mat Mat Fac Used RIF Installer . | . . . . . Robots Hacked . | . . . . . Non-combat . | . . . . . Combat . | . . . . . Robot Hacks Applied . | . . . . . Relay Couplers Released 1 | . . . . 1 Machine Destruction 1 | . . . . 1 Robots Rewired . | . . . . . Allies Hacked . | . . . . . Hacks Repelled . | . . . . . Allies | -11 -10 -9 -8 -7 -------- Run | Scr Mat Mat Mat Fac Total Allies 3 | . . . . 3 Largest Group 3 | . . . . 3 Highest-Rated Group 93 | . . . . 93 Highest-Rated Ally 31 | . . . . 31 Total Orders . | . . . . . Ally Attacks 12 | . . . . 12 Total Damage 180 | . . . . 180 Kills . | . . . . . Allies Corrupted . | . . . . . Allies Melted . | . . . . . Intel | -11 -10 -9 -8 -7 ------- Run | Scr Mat Mat Mat Fac Robot Analysis Total . | . . . . . Derelict Logs Recovered . | . . . . . Drone Launches . | . . . . . Drone Recoveries . | . . . . . Exploration | -11 -10 -9 -8 -7 ------------- Run | Scr Mat Mat Mat Fac Turns Passed 1775 | . 444 714 157 460 Spaces Moved 808 | 1 217 296 73 221 Core . | . . . . . Treads 578 | . 4 280 73 221 Legs 230 | 1 213 16 . . Wheels . | . . . . . Hover . | . . . . . Flight . | . . . . . Fastest Speed 120 | 120 120 120 160 160 Average Speed 149 | 120 120 158 160 161 Slowest Speed 240 | 120 160 190 160 240 Overloaded Moves . | . . . . . Propulsion Burnouts . | . . . . . Robots Hopped . | . . . . . Cave-ins Triggered 1 | . . 1 . . Exploration Rate (%) 30 | 2 59 64 18 11 Regions Visited 4 Branch Regions . Pre-discovered Areas . | . . . . . Known Exits Taken . | . . . . . Unknown Exits Taken 4 | 1 1 1 1 . Scrap Searched . | . . . . . Spaces Dug . | . . . . . Terrain Destroyed 232 | . 137 25 . 70 Melee . | . . . . . Projectile . | . . . . . AOE 232 | . 137 25 . 70 Terrain Rammed . | . . . . . Walls Destroyed . | . . . . . Machines Disabled . | . . . . . Actions | -11 -10 -9 -8 -7 --------- Run | Scr Mat Mat Mat Fac Total 1038 | . 296 392 90 260 Wait 1 | . 1 . . . Move 802 | . 215 294 72 221 Hop . | . . . . . Pick Up 3 | . 1 2 . . Fast Attach 21 | . 4 11 2 4 Attach 13 | . 4 2 2 5 Detach 7 | . 2 1 1 3 Swap 11 | . 4 5 2 . Drop 5 | . 4 1 . . Fire 173 | . 59 76 11 27 Melee . | . . . . . Ram . | . . . . . Kick 2 | . 2 . . . Crush . | . . . . . Escape Stasis . | . . . . . Rewire . | . . . . . Trap . | . . . . . Miscellaneous . | . . . . . Route ------- -11/Scrapyard -10/Materials -9/Materials -8/Materials -7/Factory History --------- Turn | Location | Event 1 | -11/Scrapyard | Discovered new exit (range 0) 1 | -11/Scrapyard | Entered Materials 162 | -10/Materials | Discovered new exit (range 8) 308 | -10/Materials | Build established: Mutant 396 | -10/Materials | Discovered new exit (range 4) 426 | -10/Materials | Core integrity fell below 50% 445 | -10/Materials | Entered another Materials area 445 | -9/Materials | Evolved 2 slots: Utility x1, Weapon x1 460 | -9/Materials | Lost 4 parts (1p1n1u1w) 462 | -9/Materials | Discovered new exit (range 15) 643 | -9/Materials | Lost 3 parts (3w) 779 | -9/Materials | Discovered new exit (range 13) 843 | -9/Materials | Crushed by falling debris 843 | -9/Materials | Core integrity fell below 50% 869 | -9/Materials | Discovered new exit (range 9) 869 | -9/Materials | System corruption reached 10% 902 | -9/Materials | Lost 5 parts (1p2n1u1w) 1143 | -9/Materials | Discovered new exit (range 11) 1159 | -9/Materials | Entered another Materials area 1159 | -8/Materials | Evolved 2 slots: Weapon x2 1286 | -8/Materials | Discovered new exit (range 15) 1316 | -8/Materials | Entered Factory 1316 | -7/Factory | Evolved 2 slots: Utility x1, Weapon x1 1348 | -7/Factory | Garrison activated, responded to threat 1362 | -7/Factory | Garrison activated, responded to threat 1428 | -7/Factory | Garrison activated, responded to threat 1525 | -7/Factory | Garrison activated, responded to threat 1539 | -7/Factory | Garrison activated, responded to threat 1622 | -7/Factory | Garrison activated, responded to threat 1631 | -7/Factory | Build established: Scavenger-Executioner 1655 | -7/Factory | Garrison activated, responded to threat 1697 | -7/Factory | Garrison activated, responded to threat 1707 | -7/Factory | Garrison activated, responded to threat 1724 | -7/Factory | Garrison activated, responded to threat 1746 | -7/Factory | Lost 4 parts (3u1w) 1746 | -7/Factory | Core integrity fell below 50% 1757 | -7/Factory | Core integrity fell below 20% 1777 | -7/Factory | Core destroyed Last Messages --------------- 01759_ Overheating: Imp. Medium Armor Plating damaged (-69). 01759_ Hungry Anomaly eats Com. Wheel. 01759_ Lesser Abomination feeds off Hungry Anomaly, taking Maul, Tractor Beam. 01760_ Overheating: System interference. 01760_ Electrolaser temporarily disabled. 01762_ Imp. Assault Rifle permanently disabled. 01762_ Overheating: Short circuit. 01763_ Overheating: Energy bleed (-15). 01764_ Sml. Laser permanently disabled. 01764_ Overheating: Short circuit. 01765_ Overheating: Matter decay (-11). 01766_ Power failure, Mic. Nuclear Core shutdown. 01766_ Overheating: Electrolaser damaged (-46). 01768_ Lgt. Treads permanently disabled. 01768_ Overheating: Short circuit. 01771_ Imp. EM Shotgun destroyed. 01775_ Imp. Medium Armor Plating destroyed. 01776_ Power failure, Mic. Nuclear Core shutdown. 01777_ Overheating: Core damaged (-126). Map ----- +----------------------------------------------------+ | ?????????????????????????????"?" ? ##???????????# | | ?????????????????????????? ??" " ? ##???????????# | | ?????????????????????????? " " " "% ## ????# | | ???????????????????????????" " "%" #########????# | | ???????????????????????????" " " " # """ ???# | | ???????????????????????????? " ""F"" ""???# | | ????????????????????????????? *% "" "" ""???# | | ?????????????????????????????? % """??# | | ?????????????????????????????? % # = ??# | | ????????????????????##############+#######+####??# | | ???????????##################### # ?? | | ???????????########### # + ? | | ???????????## + + # ?? | | ???????????## ######## # # ??? | | ???????????## ######## # # ??? | | ???????????## ################## # ??? | | ???????????## % ##""# | | ???????????## == ##### | | ???????????## * = | | ???????????## ###### %"""" """" A | | ???????????## ######% """"A"""" " | | ???????????## ##??## """" """" ########## | | ???????????## ##??## ########## " | | ???????????## ##??## A % ##??????## | | ???????????## ##??## AA ########## " | | ???????????## ##??## A@ ########## | | ????? ##### ##??### ####### ## ## | | ?????######## ##??### ####### ## """ ## | | ?????## # ##????# ##???## ## """ ## | | ?????## # ####### ####### ## "S ## | | ????? + #+#######+####### ## """ # | | ????? # # % #### ## "" # | | ????? # # #### ## # | | ????? # # #### + # | | ?"""? # # #### # # | | ?"""% # % # #### # """ # | | ?""" # # #### + """ # | | ?""" # /= #### ######## """ # | | "" / # = % #### # ###### # | | "" # # %#### ??????#####+#"" | | = # #### ??????## | | # # %# #### ??????## ^ | | %=# =# / % % | | """"" #[ % #################+######## % | | ? ? #= ## # #########??? ##### | | ?????%"% ?######?????????????????#####+##% | | ??? %# ???????????????????????? # | | ?? #= = ?????????????????????????????? # = | | ?? #% ?????????????????????????????? # =% | | ??##### ??????????????????????????????? # = | +----------------------------------------------------+ Best States ------------- Heat Dissipation 48 Energy Generation 15 Energy Capacity 250 Matter Stores 300 Matter Capacity 300 Sight Range 16 Terrain Scan Density 10 Armor Coverage 375 Evasion (%) 55 Recoil Reduction 2 Item Schematics ----------------- None Robot Schematics ------------------ None Fabricated ------------ Nothing Alien Tech Used ----------------- None Achievements -------------- None Challenges ------------ None Game ------ Seed CentriumSpacefoldShotgun Manual? 0 Play Time 00:17:15 Cumulative 353.5 hours Start 2022.01.06 @ 11:00:37 End 2022.01.06 @ 11:17:25 Sessions 1 Manual Loads 0 Difficulty Rogue Special Mode Halloween2019/Abominations Game No. 261 Rogue 87 Adventurer 61 Explorer 113 Win Type - Total 19 Types 17/0/1/0/0/0/0/1/0 Lore% 60 Gallery% 83 Achievement% 66 Wizard Run 0 Options --------- ASCII 0 Keyboard 1 Movement Numpad Keybinds 0 Fullscreen 2 Font 18/X11 Map View 76x50 Tactical HUD 1 Map Filters NONE Filters NONE Steam 1 RUN: cb10b40f-5947-4956-b719-066003db11ad